[Event "*** SCC Grand Prix: Titled Tuesday Blitz"]
[Site "Chess.com"]
[Date "2020.07.14"]
[Round "4"]
[White "Fortitudine"]
[Black "LimaRR"]
[Result "1-0"]
[WhiteElo "2280"]
[BlackElo "2087"]
[TimeControl "180+1"]
[EndTime "10:39:13 PDT"]
[Termination "Fortitudine won by checkmate"]

1. d4 {[%clk 0:03:00.9]} 1... Nf6 {[%clk 0:02:59.7]} 2. Nc3 {[%clk 0:03:01.1]}
2... d5 {[%clk 0:02:59.3]} 3. Bg5 {[%clk 0:03:01.1]} 3... e6 {[%clk 0:02:57.2]}
4. e4 {[%clk 0:03:00.6]} 4... dxe4 {[%clk 0:02:58.1]} 5. Nxe4 {[%clk 0:03:01]}
5... Be7 {[%clk 0:02:58.4]} 6. Bxf6 {[%clk 0:03:01.5]} 6... Bxf6 {[%clk
0:02:58.3]} 7. Nf3 {[%clk 0:03:02.1]} 7... Nd7 {[%clk 0:02:57.7]} 8. Qd2 {[%clk
0:03:02]} 8... b6 {[%clk 0:02:54.1]} 9. Bb5 {[%clk 0:02:47.7]} 9... O-O {[%clk
0:02:45.5]} 10. O-O-O {[%clk 0:02:41.4]} 10... Rb8 {[%clk 0:02:43.6]} 11. h4
{[%clk 0:02:36.6]} 11... a6 {[%clk 0:02:43]} 12. Bd3 {[%clk 0:02:36.4]} 12...
Qe7 {[%clk 0:02:35.5]} 13. g4 {[%clk 0:02:32.9]} 13... c5 {[%clk 0:02:33]} 14.
dxc5 {[%clk 0:01:48.3]} 14... bxc5 {[%clk 0:02:22.4]} 15. c3 {[%clk 0:01:41.3]}
15... Ne5 {[%clk 0:02:06.6]} 16. Nxe5 {[%clk 0:01:30.6]} 16... Bxe5 {[%clk
0:02:07.5]} 17. f4 {[%clk 0:01:23.9]} 17... Bc7 {[%clk 0:01:57.2]} 18. h5 {[%clk
0:01:03.1]} 18... Bb7 {[%clk 0:01:56.4]} 19. h6 {[%clk 0:00:48.1]} 19... g6
{[%clk 0:01:49.2]} 20. Rhe1 {[%clk 0:00:33.3]} 20... Rfd8 {[%clk 0:01:45.3]} 21.
Qe3 {[%clk 0:00:25.6]} 21... Bd5 {[%clk 0:01:33.7]} 22. g5 {[%clk 0:00:20.5]}
22... Bxa2 {[%clk 0:00:47.3]} 23. Nf6+ {[%clk 0:00:18.5]} 23... Kh8 {[%clk
0:00:45.6]} 24. f5 {[%clk 0:00:04.8]} 24... c4 {[%clk 0:00:35.6]} 25. fxg6
{[%clk 0:00:03.5]} 25... cxd3 {[%clk 0:00:22.5]} 26. g7# {[%clk 0:00:03.3]} 1-0

[Event "*** SCC Grand Prix: Titled Tuesday Blitz"]
[Site "Chess.com"]
[Date "2020.07.14"]
[Round "4"]
[White "deep306"]
[Black "XiaoKangZhong"]
[Result "0-1"]
[WhiteElo "2597"]
[BlackElo "2449"]
[TimeControl "180+1"]
[EndTime "10:39:17 PDT"]
[Termination "XiaoKangZhong won on time"]

1. d4 {[%clk 0:03:00]} 1... Nf6 {[%clk 0:02:55.4]} 2. c4 {[%clk 0:02:59.7]} 2...
g6 {[%clk 0:02:55.1]} 3. Nc3 {[%clk 0:02:59.3]} 3... d5 {[%clk 0:02:54.9]} 4.
cxd5 {[%clk 0:02:58.9]} 4... Nxd5 {[%clk 0:02:55.5]} 5. e4 {[%clk 0:02:59.2]}
5... Nxc3 {[%clk 0:02:55.6]} 6. bxc3 {[%clk 0:02:59.8]} 6... Bg7 {[%clk
0:02:56.2]} 7. Nf3 {[%clk 0:03:00.4]} 7... c5 {[%clk 0:02:51.6]} 8. Be3 {[%clk
0:03:00.4]} 8... O-O {[%clk 0:02:49.3]} 9. Qd2 {[%clk 0:02:57.6]} 9... Qa5
{[%clk 0:02:47.3]} 10. Rc1 {[%clk 0:02:52.8]} 10... Rd8 {[%clk 0:02:44.3]} 11.
d5 {[%clk 0:02:50.3]} 11... b6 {[%clk 0:02:39.2]} 12. c4 {[%clk 0:02:49.9]}
12... Qa3 {[%clk 0:02:38.5]} 13. Be2 {[%clk 0:02:46.2]} 13... Na6 {[%clk
0:02:38.1]} 14. O-O {[%clk 0:02:43.4]} 14... Nb4 {[%clk 0:02:36.5]} 15. Bg5
{[%clk 0:02:02.8]} 15... f6 {[%clk 0:02:25.1]} 16. Bf4 {[%clk 0:01:55.3]} 16...
Qxa2 {[%clk 0:02:23]} 17. Qd1 {[%clk 0:01:50.7]} 17... Bg4 {[%clk 0:02:04.8]}
18. h3 {[%clk 0:01:22.6]} 18... Bxf3 {[%clk 0:01:56.9]} 19. Bxf3 {[%clk
0:01:21.5]} 19... Qa3 {[%clk 0:01:54.8]} 20. Re1 {[%clk 0:01:06.4]} 20... Qd3
{[%clk 0:01:49.4]} 21. Qa4 {[%clk 0:01:02.8]} 21... a6 {[%clk 0:01:07.7]} 22.
Red1 {[%clk 0:01:02.5]} 22... b5 {[%clk 0:01:07.8]} 23. Qa5 {[%clk 0:00:43.5]}
23... Qb3 {[%clk 0:00:55.8]} 24. cxb5 {[%clk 0:00:39]} 24... Nd3 {[%clk
0:00:55.3]} 25. Rb1 {[%clk 0:00:36.1]} 25... Qc4 {[%clk 0:00:42.4]} 26. Be2
{[%clk 0:00:30.2]} 26... axb5 {[%clk 0:00:35.3]} 27. Qd2 {[%clk 0:00:27.6]}
27... Ra2 {[%clk 0:00:32.1]} 28. Qxd3 {[%clk 0:00:24.9]} 28... Rxe2 {[%clk
0:00:32.1]} 29. Qxc4 {[%clk 0:00:20.4]} 29... bxc4 {[%clk 0:00:33]} 30. f3
{[%clk 0:00:17.9]} 30... c3 {[%clk 0:00:28.7]} 0-1

[Event "*** SCC Grand Prix: Titled Tuesday Blitz"]
[Site "Chess.com"]
[Date "2020.07.14"]
[Round "4"]
[White "Skatchkov_V"]
[Black "Miss_JJ20"]
[Result "0-1"]
[WhiteElo "2556"]
[BlackElo "2290"]
[TimeControl "180+1"]
[EndTime "10:39:17 PDT"]
[Termination "Miss_JJ20 won by resignation"]

1. d4 {[%clk 0:03:00.8]} 1... Nf6 {[%clk 0:02:58.7]} 2. c4 {[%clk 0:03:00.9]}
2... c5 {[%clk 0:02:58.5]} 3. d5 {[%clk 0:03:01.2]} 3... b5 {[%clk 0:02:58.3]}
4. Nf3 {[%clk 0:03:01.6]} 4... b4 {[%clk 0:02:54.7]} 5. Qc2 {[%clk 0:02:59.9]}
5... d6 {[%clk 0:02:53.5]} 6. e4 {[%clk 0:03:00.3]} 6... g6 {[%clk 0:02:53.8]}
7. Bd3 {[%clk 0:03:00.4]} 7... Bg7 {[%clk 0:02:54]} 8. h3 {[%clk 0:03:01.1]}
8... O-O {[%clk 0:02:52.9]} 9. Bf4 {[%clk 0:03:01.4]} 9... Nfd7 {[%clk
0:02:37.6]} 10. Nbd2 {[%clk 0:02:58.7]} 10... a5 {[%clk 0:02:37.8]} 11. O-O
{[%clk 0:02:41.3]} 11... a4 {[%clk 0:02:36.8]} 12. Rae1 {[%clk 0:02:39.2]} 12...
Ne5 {[%clk 0:02:26.6]} 13. Nxe5 {[%clk 0:02:39.2]} 13... dxe5 {[%clk 0:02:26.8]}
14. Bh2 {[%clk 0:02:39.5]} 14... Nd7 {[%clk 0:02:16.2]} 15. Kh1 {[%clk
0:02:29.7]} 15... Qb6 {[%clk 0:01:56.3]} 16. Qd1 {[%clk 0:01:41.7]} 16... h6
{[%clk 0:01:32.9]} 17. Nf3 {[%clk 0:01:34.8]} 17... Ba6 {[%clk 0:01:22.5]} 18.
Nh4 {[%clk 0:01:28.5]} 18... Qf6 {[%clk 0:01:07.6]} 19. g3 {[%clk 0:01:21.8]}
19... Nb6 {[%clk 0:00:52.2]} 20. Qe2 {[%clk 0:01:06.7]} 20... b3 {[%clk
0:00:47.1]} 21. a3 {[%clk 0:01:05.5]} 21... e6 {[%clk 0:00:43.9]} 22. Ng2 {[%clk
0:01:01.8]} 22... exd5 {[%clk 0:00:42.7]} 23. exd5 {[%clk 0:01:02.7]} 23... Rae8
{[%clk 0:00:41.3]} 24. Rc1 {[%clk 0:00:43.9]} 24... e4 {[%clk 0:00:39.1]} 25.
Bxe4 {[%clk 0:00:18]} 25... Qxb2 {[%clk 0:00:39]} 26. Qf3 {[%clk 0:00:17.2]}
26... Bxc4 {[%clk 0:00:35.1]} 27. Rfd1 {[%clk 0:00:13.6]} 27... Qe5 {[%clk
0:00:35]} 28. Ne1 {[%clk 0:00:08.2]} 28... Qxe4 {[%clk 0:00:34.2]} 29. Qxe4
{[%clk 0:00:08.1]} 29... Rxe4 {[%clk 0:00:35.1]} 30. Nf3 {[%clk 0:00:09]} 30...
Bxd5 {[%clk 0:00:33.6]} 31. Rxc5 {[%clk 0:00:09.2]} 31... Rd4 {[%clk 0:00:30.6]}
32. Rxd4 {[%clk 0:00:07.6]} 32... Bxf3+ {[%clk 0:00:30.5]} 0-1

[Event "*** SCC Grand Prix: Titled Tuesday Blitz"]
[Site "Chess.com"]
[Date "2020.07.14"]
[Round "4"]
[White "MisiekZielony"]
[Black "keshka01"]
[Result "0-1"]
[WhiteElo "2224"]
[BlackElo "2566"]
[TimeControl "180+1"]
[EndTime "10:39:19 PDT"]
[Termination "keshka01 won on time"]

1. c4 {[%clk 0:03:00.1]} 1... g6 {[%clk 0:02:58.7]} 2. Nc3 {[%clk 0:03:00.1]}
2... Bg7 {[%clk 0:02:59.4]} 3. g3 {[%clk 0:03:00.6]} 3... c5 {[%clk 0:02:57.4]}
4. Bg2 {[%clk 0:03:01.1]} 4... Nc6 {[%clk 0:02:54.8]} 5. e4 {[%clk 0:03:01.6]}
5... e6 {[%clk 0:02:50.7]} 6. Nge2 {[%clk 0:03:02.1]} 6... Nge7 {[%clk
0:02:51.3]} 7. d3 {[%clk 0:03:02.3]} 7... O-O {[%clk 0:02:51.4]} 8. O-O {[%clk
0:03:01.7]} 8... Nd4 {[%clk 0:02:49.1]} 9. Nxd4 {[%clk 0:02:53.9]} 9... cxd4
{[%clk 0:02:47]} 10. Ne2 {[%clk 0:02:53]} 10... d5 {[%clk 0:02:35.3]} 11. exd5
{[%clk 0:02:28.7]} 11... exd5 {[%clk 0:02:36.2]} 12. c5 {[%clk 0:02:28.7]} 12...
Bf5 {[%clk 0:02:05.6]} 13. Bg5 {[%clk 0:01:49.6]} 13... h6 {[%clk 0:02:04.1]}
14. Bf4 {[%clk 0:01:47.8]} 14... Re8 {[%clk 0:01:42.7]} 15. h3 {[%clk
0:01:24.1]} 15... g5 {[%clk 0:01:30.7]} 16. Bd6 {[%clk 0:01:19.3]} 16... Nc8
{[%clk 0:01:29]} 17. g4 {[%clk 0:01:12.7]} 17... Nxd6 {[%clk 0:01:28.8]} 18.
cxd6 {[%clk 0:01:04.6]} 18... Bg6 {[%clk 0:01:27]} 19. f4 {[%clk 0:00:42.3]}
19... Qxd6 {[%clk 0:00:38.8]} 20. f5 {[%clk 0:00:32.6]} 20... Bh7 {[%clk
0:00:39]} 21. Rf3 {[%clk 0:00:23.9]} 21... Re3 {[%clk 0:00:36.9]} 22. Rxe3
{[%clk 0:00:21.2]} 22... dxe3 {[%clk 0:00:37.8]} 23. d4 {[%clk 0:00:21.4]} 23...
Re8 {[%clk 0:00:33.8]} 24. Qd3 {[%clk 0:00:21.4]} 24... Bf8 {[%clk 0:00:16.8]}
25. Rf1 {[%clk 0:00:14.3]} 25... f6 {[%clk 0:00:14.1]} 26. Rf3 {[%clk
0:00:09.4]} 26... Qe7 {[%clk 0:00:08.8]} 27. Rf1 {[%clk 0:00:07.7]} 27... Qd7
{[%clk 0:00:08.7]} 28. Nc3 {[%clk 0:00:05]} 28... Kg7 {[%clk 0:00:08.4]} 29.
Nxd5 {[%clk 0:00:02.5]} 29... e2 {[%clk 0:00:08.4]} 0-1

[Event "*** SCC Grand Prix: Titled Tuesday Blitz"]
[Site "Chess.com"]
[Date "2020.07.14"]
[Round "4"]
[White "AlexOstrovskiy"]
[Black "Oligan22"]
[Result "1-0"]
[WhiteElo "2629"]
[BlackElo "2449"]
[TimeControl "180+1"]
[EndTime "10:39:20 PDT"]
[Termination "AlexOstrovskiy won by resignation"]

1. d4 {[%clk 0:03:00.9]} 1... d5 {[%clk 0:02:59.6]} 2. Bf4 {[%clk 0:03:00.1]}
2... Nf6 {[%clk 0:02:57.4]} 3. e3 {[%clk 0:02:59.5]} 3... c5 {[%clk 0:02:56.7]}
4. dxc5 {[%clk 0:02:59]} 4... Nc6 {[%clk 0:02:56.6]} 5. Bb5 {[%clk 0:02:57.7]}
5... e6 {[%clk 0:02:40.4]} 6. b4 {[%clk 0:02:54.6]} 6... Nd7 {[%clk 0:02:37.4]}
7. c3 {[%clk 0:02:40.9]} 7... a5 {[%clk 0:02:30.4]} 8. Ne2 {[%clk 0:02:10.2]}
8... axb4 {[%clk 0:02:25]} 9. Bxc6 {[%clk 0:02:09.1]} 9... bxc6 {[%clk
0:02:25.9]} 10. cxb4 {[%clk 0:02:09.3]} 10... Qf6 {[%clk 0:02:11.8]} 11. Nbc3
{[%clk 0:02:07.9]} 11... Ba6 {[%clk 0:01:57.9]} 12. O-O {[%clk 0:01:59.7]} 12...
g5 {[%clk 0:01:57.3]} 13. Bg3 {[%clk 0:01:55.1]} 13... h5 {[%clk 0:01:50.1]} 14.
Bd6 {[%clk 0:01:11]} 14... Bxd6 {[%clk 0:01:45.3]} 15. cxd6 {[%clk 0:01:11.9]}
15... e5 {[%clk 0:01:41.8]} 16. b5 {[%clk 0:01:09.5]} 16... Bb7 {[%clk
0:01:38.1]} 17. bxc6 {[%clk 0:01:06.9]} 17... Bxc6 {[%clk 0:01:39]} 18. Nxd5
{[%clk 0:01:07.1]} 18... Qxd6 {[%clk 0:01:39.2]} 19. Nec3 {[%clk 0:01:02.7]}
19... e4 {[%clk 0:01:34.9]} 20. Qd4 {[%clk 0:00:57.1]} 20... O-O {[%clk
0:01:10.6]} 21. Qxe4 {[%clk 0:00:50]} 21... Rae8 {[%clk 0:01:02]} 22. Qd4 {[%clk
0:00:48]} 22... h4 {[%clk 0:00:32.4]} 23. h3 {[%clk 0:00:46]} 23... f6 {[%clk
0:00:24.6]} 24. Rfd1 {[%clk 0:00:41.7]} 24... Ne5 {[%clk 0:00:23]} 25. Ne4
{[%clk 0:00:36.2]} 25... Qe6 {[%clk 0:00:08.7]} 26. Nc7 {[%clk 0:00:34.2]} 26...
Qf5 {[%clk 0:00:08.7]} 27. Nxe8 {[%clk 0:00:31]} 27... Rxe8 {[%clk 0:00:09.6]}
28. Nd6 {[%clk 0:00:18.5]} 28... Nf3+ {[%clk 0:00:09.9]} 29. gxf3 {[%clk
0:00:18.9]} 29... Qxf3 {[%clk 0:00:10.1]} 30. Kf1 {[%clk 0:00:17.2]} 30... Qg2+
{[%clk 0:00:09.1]} 31. Ke1 {[%clk 0:00:15.7]} 31... Qg1+ {[%clk 0:00:06.7]} 32.
Ke2 {[%clk 0:00:14.3]} 32... Qg2 {[%clk 0:00:07.1]} 33. Nxe8 {[%clk 0:00:10.7]}
33... Qf3+ {[%clk 0:00:07.4]} 34. Ke1 {[%clk 0:00:09.1]} 34... Qxf2+ {[%clk
0:00:07.9]} 35. Kxf2 {[%clk 0:00:08.7]} 1-0

[Event "*** SCC Grand Prix: Titled Tuesday Blitz"]
[Site "Chess.com"]
[Date "2020.07.14"]
[Round "4"]
[White "Kaua18"]
[Black "dopolian"]
[Result "0-1"]
[WhiteElo "2276"]
[BlackElo "2447"]
[TimeControl "180+1"]
[EndTime "10:39:23 PDT"]
[Termination "dopolian won by resignation"]

1. e4 {[%clk 0:03:00.9]} 1... Nc6 {[%clk 0:02:59.6]} 2. Nf3 {[%clk 0:02:55.5]}
2... e5 {[%clk 0:02:56.7]} 3. d4 {[%clk 0:02:55.1]} 3... exd4 {[%clk 0:02:56.8]}
4. Bc4 {[%clk 0:02:54.7]} 4... Nf6 {[%clk 0:02:57]} 5. e5 {[%clk 0:02:55]} 5...
d5 {[%clk 0:02:57.5]} 6. Bb5 {[%clk 0:02:54.9]} 6... Ne4 {[%clk 0:02:58.1]} 7.
Nxd4 {[%clk 0:02:54.6]} 7... Bc5 {[%clk 0:02:58.7]} 8. Be3 {[%clk 0:02:50.7]}
8... O-O {[%clk 0:02:57.8]} 9. Nxc6 {[%clk 0:02:48.3]} 9... bxc6 {[%clk
0:02:58.2]} 10. Bxc5 {[%clk 0:02:47.9]} 10... Nxc5 {[%clk 0:02:57.8]} 11. Bxc6
{[%clk 0:02:48.2]} 11... Rb8 {[%clk 0:02:52.1]} 12. Qxd5 {[%clk 0:02:32.3]}
12... Qe7 {[%clk 0:02:31]} 13. O-O {[%clk 0:02:27.7]} 13... Rxb2 {[%clk
0:02:30.2]} 14. Na3 {[%clk 0:02:01.2]} 14... Be6 {[%clk 0:02:23.9]} 15. Qf3
{[%clk 0:01:53.8]} 15... Bxa2 {[%clk 0:02:11]} 16. Qc3 {[%clk 0:01:38.8]} 16...
Rfb8 {[%clk 0:02:10.1]} 17. Nc4 {[%clk 0:01:37.7]} 17... Bxc4 {[%clk 0:02:07]}
18. Qxc4 {[%clk 0:01:38.6]} 18... Qxe5 {[%clk 0:01:50.3]} 19. Rfe1 {[%clk
0:01:35.1]} 19... Qf5 {[%clk 0:01:24.4]} 20. Re2 {[%clk 0:01:03.1]} 20... Rb1+
{[%clk 0:01:14.5]} 21. Re1 {[%clk 0:01:02.5]} 21... R1b2 {[%clk 0:01:14.4]} 22.
Re2 {[%clk 0:00:56.4]} 22... a5 {[%clk 0:00:59.4]} 23. h3 {[%clk 0:00:55.3]}
23... Rb1+ {[%clk 0:00:49.3]} 24. Re1 {[%clk 0:00:53.9]} 24... Rxe1+ {[%clk
0:00:47.3]} 25. Rxe1 {[%clk 0:00:54.8]} 25... h6 {[%clk 0:00:36.6]} 26. g4
{[%clk 0:00:44.9]} 26... Qg5 {[%clk 0:00:26]} 27. f4 {[%clk 0:00:43.8]} 27...
Qh4 {[%clk 0:00:25.7]} 28. Rf1 {[%clk 0:00:20.4]} 28... Ne6 {[%clk 0:00:17.9]}
29. Bg2 {[%clk 0:00:20.3]} 29... Qg3 {[%clk 0:00:14.9]} 30. f5 {[%clk
0:00:16.6]} 30... Ng5 {[%clk 0:00:14.8]} 31. Qd3 {[%clk 0:00:16]} 31... Nxh3+
{[%clk 0:00:14]} 32. Kh1 {[%clk 0:00:15.7]} 32... Nf2+ {[%clk 0:00:14.7]} 33.
Rxf2 {[%clk 0:00:15.3]} 33... Qxf2 {[%clk 0:00:15.6]} 34. Kh2 {[%clk 0:00:12]}
34... Qf4+ {[%clk 0:00:14.9]} 35. Kh3 {[%clk 0:00:08]} 35... Re8 {[%clk
0:00:14.8]} 36. g5 {[%clk 0:00:01.3]} 36... Re3+ {[%clk 0:00:14.5]} 0-1

[Event "*** SCC Grand Prix: Titled Tuesday Blitz"]
[Site "Chess.com"]
[Date "2020.07.14"]
[Round "4"]
[White "NormWeinstein"]
[Black "JosefineHeinemann"]
[Result "0-1"]
[WhiteElo "2453"]
[BlackElo "2641"]
[TimeControl "180+1"]
[EndTime "10:39:24 PDT"]
[Termination "JosefineHeinemann won on time"]

1. e4 {[%clk 0:03:00.9]} 1... c5 {[%clk 0:02:59.2]} 2. Nf3 {[%clk 0:03:00.7]}
2... d6 {[%clk 0:02:59.4]} 3. Nc3 {[%clk 0:03:00.5]} 3... a6 {[%clk 0:02:58.1]}
4. g3 {[%clk 0:02:59.4]} 4... Nc6 {[%clk 0:02:56.8]} 5. Bg2 {[%clk 0:02:59]}
5... g6 {[%clk 0:02:57.4]} 6. d4 {[%clk 0:02:58.4]} 6... cxd4 {[%clk 0:02:56.6]}
7. Nxd4 {[%clk 0:02:58.1]} 7... Bg7 {[%clk 0:02:57.5]} 8. Nxc6 {[%clk
0:02:57.6]} 8... bxc6 {[%clk 0:02:56.6]} 9. O-O {[%clk 0:02:58]} 9... Qc7 {[%clk
0:02:44.5]} 10. Re1 {[%clk 0:02:52]} 10... Rb8 {[%clk 0:02:38.5]} 11. Na4 {[%clk
0:02:37.5]} 11... Be6 {[%clk 0:02:33.2]} 12. Qd3 {[%clk 0:02:15.3]} 12... Nf6
{[%clk 0:02:28.6]} 13. c4 {[%clk 0:02:12.5]} 13... Nd7 {[%clk 0:02:25.1]} 14.
Qc2 {[%clk 0:01:59]} 14... O-O {[%clk 0:02:23.8]} 15. Rb1 {[%clk 0:01:54.6]}
15... Ne5 {[%clk 0:02:16.2]} 16. b3 {[%clk 0:01:51.6]} 16... Nxc4 {[%clk
0:02:08]} 17. bxc4 {[%clk 0:01:46.7]} 17... Rxb1 {[%clk 0:02:08.9]} 18. Qxb1
{[%clk 0:01:45.8]} 18... Qa5 {[%clk 0:02:09.5]} 19. Bg5 {[%clk 0:01:34.7]} 19...
Qxg5 {[%clk 0:02:05.2]} 20. c5 {[%clk 0:01:26]} 20... Bd4 {[%clk 0:01:56.2]} 21.
cxd6 {[%clk 0:01:23.5]} 21... exd6 {[%clk 0:01:57.1]} 22. Qc2 {[%clk 0:01:18.6]}
22... c5 {[%clk 0:01:52.4]} 23. Nc3 {[%clk 0:01:18.1]} 23... Rb8 {[%clk
0:01:48.9]} 24. Rb1 {[%clk 0:01:08.8]} 24... Rxb1+ {[%clk 0:01:40]} 25. Nxb1
{[%clk 0:01:08.4]} 25... Qf6 {[%clk 0:01:39.9]} 26. a3 {[%clk 0:01:00.5]} 26...
c4 {[%clk 0:01:38.4]} 27. Kf1 {[%clk 0:00:55]} 27... c3 {[%clk 0:01:37]} 28. f4
{[%clk 0:00:51.7]} 28... g5 {[%clk 0:01:29.9]} 29. f5 {[%clk 0:00:49.9]} 29...
Bc4+ {[%clk 0:01:26.7]} 30. Ke1 {[%clk 0:00:50.2]} 30... d5 {[%clk 0:01:24.6]}
31. Bf1 {[%clk 0:00:46.2]} 31... Bxf1 {[%clk 0:01:19.1]} 32. Kxf1 {[%clk
0:00:45.7]} 32... Qe5 {[%clk 0:01:17.9]} 33. exd5 {[%clk 0:00:38.5]} 33... Qe3
{[%clk 0:01:15.3]} 34. d6 {[%clk 0:00:31.2]} 34... Qg1+ {[%clk 0:01:07.2]} 35.
Ke2 {[%clk 0:00:30.9]} 35... Qf2+ {[%clk 0:01:04.9]} 36. Kd3 {[%clk 0:00:30.6]}
36... Qxf5+ {[%clk 0:01:05]} 37. Kxd4 {[%clk 0:00:24.8]} 37... Qxc2 {[%clk
0:01:05.5]} 38. Nxc3 {[%clk 0:00:21.3]} 38... Kf8 {[%clk 0:01:02.4]} 39. Nd5
{[%clk 0:00:20.3]} 39... Qa4+ {[%clk 0:00:58.4]} 40. Ke5 {[%clk 0:00:18.5]}
40... Ke8 {[%clk 0:00:41.3]} 41. d7+ {[%clk 0:00:14.6]} 41... Kd8 {[%clk
0:00:41.3]} 42. Nf6 {[%clk 0:00:10.6]} 42... Qxa3 {[%clk 0:00:40.3]} 43. Nxh7
{[%clk 0:00:06.6]} 43... Kxd7 {[%clk 0:00:39.4]} 44. Nf6+ {[%clk 0:00:05.8]}
44... Ke7 {[%clk 0:00:39.1]} 45. Nd5+ {[%clk 0:00:05.4]} 45... Kf8 {[%clk
0:00:39.4]} 46. g4 {[%clk 0:00:03.6]} 46... Qc5 {[%clk 0:00:39]} 47. Ke4 {[%clk
0:00:02.7]} 47... a5 {[%clk 0:00:39.6]} 0-1

[Event "*** SCC Grand Prix: Titled Tuesday Blitz"]
[Site "Chess.com"]
[Date "2020.07.14"]
[Round "4"]
[White "catalin009"]
[Black "LilRag"]
[Result "0-1"]
[WhiteElo "2325"]
[BlackElo "2513"]
[TimeControl "180+1"]
[EndTime "10:39:24 PDT"]
[Termination "LilRag won by resignation"]

1. e4 {[%clk 0:02:58.5]} 1... c5 {[%clk 0:02:57.8]} 2. Nf3 {[%clk 0:02:58.3]}
2... e6 {[%clk 0:02:56.8]} 3. d4 {[%clk 0:02:57.9]} 3... cxd4 {[%clk 0:02:52.7]}
4. Nxd4 {[%clk 0:02:58.8]} 4... Nf6 {[%clk 0:02:52.7]} 5. Bd3 {[%clk 0:02:56.1]}
5... Nc6 {[%clk 0:02:52.7]} 6. Nxc6 {[%clk 0:02:52.5]} 6... bxc6 {[%clk
0:02:52.8]} 7. O-O {[%clk 0:02:50.1]} 7... d5 {[%clk 0:02:51.4]} 8. Nc3 {[%clk
0:02:37.6]} 8... Be7 {[%clk 0:02:49.3]} 9. Qe2 {[%clk 0:02:36]} 9... O-O {[%clk
0:02:44.6]} 10. b3 {[%clk 0:02:17.1]} 10... c5 {[%clk 0:02:35.6]} 11. Bb2 {[%clk
0:02:15.3]} 11... Bb7 {[%clk 0:02:34.3]} 12. Rad1 {[%clk 0:02:12.1]} 12... Re8
{[%clk 0:02:19.5]} 13. Rfe1 {[%clk 0:01:53.2]} 13... a6 {[%clk 0:02:03.8]} 14.
e5 {[%clk 0:01:46.9]} 14... Nd7 {[%clk 0:02:01.6]} 15. Na4 {[%clk 0:01:44.5]}
15... Qc7 {[%clk 0:01:57.5]} 16. c4 {[%clk 0:01:42.7]} 16... d4 {[%clk
0:01:41.6]} 17. Bc1 {[%clk 0:01:27.1]} 17... Bc6 {[%clk 0:01:37.4]} 18. Nb2
{[%clk 0:01:26.6]} 18... a5 {[%clk 0:01:35]} 19. Bb1 {[%clk 0:00:40.8]} 19...
Bf8 {[%clk 0:01:25.5]} 20. Rd3 {[%clk 0:00:38.8]} 20... g6 {[%clk 0:01:24.9]}
21. h4 {[%clk 0:00:28.4]} 21... Bg7 {[%clk 0:01:24.5]} 22. f4 {[%clk 0:00:27.1]}
22... Nb6 {[%clk 0:01:09]} 23. h5 {[%clk 0:00:25.6]} 23... a4 {[%clk 0:01:09]}
24. Rh3 {[%clk 0:00:24.6]} 24... axb3 {[%clk 0:01:07.8]} 25. axb3 {[%clk
0:00:23.2]} 25... Nd7 {[%clk 0:00:51.8]} 26. Qg4 {[%clk 0:00:12.9]} 26... Nf8
{[%clk 0:00:43.3]} 27. hxg6 {[%clk 0:00:10.9]} 27... hxg6 {[%clk 0:00:37.6]} 28.
Nd3 {[%clk 0:00:07.7]} 28... Qe7 {[%clk 0:00:30.2]} 29. Nf2 {[%clk 0:00:07.5]}
29... Ra1 {[%clk 0:00:25.5]} 30. Bb2 {[%clk 0:00:06.4]} 30... Ra7 {[%clk
0:00:22.8]} 31. Be4 {[%clk 0:00:05.7]} 31... Bxe4 {[%clk 0:00:19.6]} 32. Nxe4
{[%clk 0:00:06.6]} 32... Ra2 {[%clk 0:00:19.7]} 33. Re2 {[%clk 0:00:02.1]} 33...
Rb8 {[%clk 0:00:18.6]} 34. Kh2 {[%clk 0:00:01.4]} 34... d3 {[%clk 0:00:15.8]}
35. Ng5 {[%clk 0:00:02]} 35... dxe2 {[%clk 0:00:15.4]} 36. Qh4 {[%clk
0:00:02.5]} 36... e1=Q {[%clk 0:00:14.9]} 0-1

[Event "*** SCC Grand Prix: Titled Tuesday Blitz"]
[Site "Chess.com"]
[Date "2020.07.14"]
[Round "4"]
[White "SHIVACalypso"]
[Black "swayamsm"]
[Result "0-1"]
[WhiteElo "2431"]
[BlackElo "2612"]
[TimeControl "180+1"]
[EndTime "10:39:25 PDT"]
[Termination "swayamsm won on time"]

1. Nf3 {[%clk 0:03:00.9]} 1... e6 {[%clk 0:03:00.9]} 2. c4 {[%clk 0:03:00.8]}
2... b6 {[%clk 0:02:52.2]} 3. g3 {[%clk 0:02:59.2]} 3... Bb7 {[%clk 0:02:53.1]}
4. Bg2 {[%clk 0:02:58.2]} 4... f5 {[%clk 0:02:53.9]} 5. O-O {[%clk 0:02:57.9]}
5... Nf6 {[%clk 0:02:54.3]} 6. Nc3 {[%clk 0:02:58.3]} 6... Be7 {[%clk
0:02:53.4]} 7. Rb1 {[%clk 0:02:56.3]} 7... O-O {[%clk 0:02:52.8]} 8. d3 {[%clk
0:02:55.1]} 8... Qe8 {[%clk 0:02:52.9]} 9. b4 {[%clk 0:02:53.3]} 9... a5 {[%clk
0:02:51.7]} 10. a3 {[%clk 0:02:52.5]} 10... axb4 {[%clk 0:02:48.6]} 11. axb4
{[%clk 0:02:53.4]} 11... d6 {[%clk 0:02:47.2]} 12. b5 {[%clk 0:02:52]} 12...
Nbd7 {[%clk 0:02:46.9]} 13. Bb2 {[%clk 0:02:49.6]} 13... Qh5 {[%clk 0:02:32]}
14. Nd4 {[%clk 0:02:27.9]} 14... Bxg2 {[%clk 0:02:32.9]} 15. Kxg2 {[%clk
0:02:27.8]} 15... e5 {[%clk 0:02:30.6]} 16. Ne6 {[%clk 0:02:21.3]} 16... Rfc8
{[%clk 0:02:29.9]} 17. Ra1 {[%clk 0:02:12.3]} 17... Ne8 {[%clk 0:02:21.6]} 18.
Nd5 {[%clk 0:02:03.5]} 18... Rxa1 {[%clk 0:02:14.7]} 19. Qxa1 {[%clk 0:02:00.1]}
19... Bf6 {[%clk 0:01:30.7]} 20. Qa6 {[%clk 0:01:51.4]} 20... Rb8 {[%clk
0:01:28.8]} 21. e3 {[%clk 0:01:29.7]} 21... Qf7 {[%clk 0:01:19.1]} 22. Nexc7
{[%clk 0:01:11]} 22... Nxc7 {[%clk 0:01:17.1]} 23. Nxc7 {[%clk 0:01:11.9]} 23...
Nc5 {[%clk 0:01:15.6]} 24. Qa7 {[%clk 0:01:02.2]} 24... Rc8 {[%clk 0:01:14.4]}
25. Qxb6 {[%clk 0:00:57.2]} 25... Qxc7 {[%clk 0:01:12.4]} 26. Qxc7 {[%clk
0:00:53.8]} 26... Rxc7 {[%clk 0:01:13.3]} 27. Rd1 {[%clk 0:00:45.3]} 27... Ra7
{[%clk 0:01:01.9]} 28. d4 {[%clk 0:00:44.1]} 28... Na4 {[%clk 0:00:49.7]} 29.
Ba1 {[%clk 0:00:39.5]} 29... exd4 {[%clk 0:00:49.1]} 30. Bxd4 {[%clk 0:00:38.1]}
30... Bxd4 {[%clk 0:00:48.1]} 31. Rxd4 {[%clk 0:00:35.3]} 31... Rc7 {[%clk
0:00:45.2]} 32. Kf3 {[%clk 0:00:20.1]} 32... Kf7 {[%clk 0:00:42.3]} 33. Rxd6
{[%clk 0:00:20.3]} 33... Rxc4 {[%clk 0:00:42.1]} 34. Ra6 {[%clk 0:00:20.1]}
34... Rb4 {[%clk 0:00:41]} 35. h4 {[%clk 0:00:16.6]} 35... Nc5 {[%clk
0:00:40.9]} 36. Ra7+ {[%clk 0:00:16.3]} 36... Kf6 {[%clk 0:00:41.1]} 37. Ra5
{[%clk 0:00:12.4]} 37... Ne4 {[%clk 0:00:40.6]} 38. Ra6+ {[%clk 0:00:11.4]}
38... Kf7 {[%clk 0:00:36.4]} 39. b6 {[%clk 0:00:08.8]} 39... h6 {[%clk
0:00:31.5]} 0-1